fUST/lending_fUST_20250427
["ID","MTS","AMOUNT","RATE_DAILY","PERIOD"]
[359150947,1745743843442,-423.40077104,0.00016029,2]
[359150949,1745743843453,-500.0,0.00016029,2]
[359150951,1745743843463,-500.0,0.00016029,2]
[359150953,1745743843472,-301.69118633,0.00016029,2]
[359151104,1745743846581,-163.73991633,0.00015929,2]
[359151105,1745743846592,-198.30881367,0.00016029,2]
[359151106,1745743846602,-500.0,0.00016029,2]
[359151107,1745743846612,-500.0,0.00016029,2]
[359151108,1745743846621,-500.0,0.00016029,2]
[359151109,1745743846631,-500.0,0.00016029,2]
[359151110,1745743846641,-500.0,0.00016029,2]
[359151111,1745743846651,-500.0,0.00016029,2]
[359151112,1745743846661,-500.0,0.00016029,2]
[359151113,1745743846672,-500.0,0.00016029,2]
[359151114,1745743846682,-87.75235327,0.00016029,2]
[359151115,1745743846694,-412.24764673,0.00016029,2]
[359151116,1745743846704,-390.66738391,0.00016029,2]
[359151117,1745743846717,-109.33261609,0.00016029,2]
[359151118,1745743846726,-500.0,0.00016029,2]
[359151119,1745743846737,-500.0,0.00016029,2]
[359151120,1745743846746,-500.0,0.00016029,2]
[359151121,1745743846755,-500.0,0.00016029,2]
[359151122,1745743846765,-500.0,0.00016029,2]
[359151123,1745743846775,-500.0,0.00016029,2]
[359151124,1745743846784,-500.0,0.00016029,2]
[359151125,1745743846794,-12.96991574,0.00016438,2]
[359151126,1745743846804,-400.0,0.00016438,2]
[359151127,1745743846814,-400.0,0.00016438,2]
[359151128,1745743846825,-400.0,0.00016438,2]
[359151129,1745743846836,-400.0,0.00016438,2]
[359151130,1745743846845,-400.0,0.00016438,2]
[359151131,1745743846855,-400.0,0.00016438,2]
[359151132,1745743846864,-400.0,0.00016438,2]
[359151133,1745743846874,-400.0,0.00016438,2]
[359151134,1745743846884,-400.0,0.00016438,2]
[359151135,1745743846893,-500.0,0.00016438,2]
[359151136,1745743846903,-400.0,0.00016438,2]
[359151137,1745743846912,-400.0,0.00016438,2]
[359151138,1745743846922,-500.0,0.00016438,2]
[359151139,1745743846931,-381.53108669,0.00016438,2]
[359151145,1745743949823,-248.29086414,0.0001353,2]
[359151150,1745744058183,-1.70913586,0.0001353,2]
[359151152,1745744189202,153.31517994,0.00019816,19]
[359151153,1745744189496,153.31517994,0.00021316,35]
[359151191,1745745032530,-189.17395681,0.0001343,2]
[359151192,1745745032540,-165.10573185,0.00014513,2]
[359151193,1745745032551,-905.40146358,0.00015838,2]
[359151194,1745745032562,-1000.0,0.00015838,2]
[359151195,1745745032571,-155.65734527,0.00015873,2]
[359151196,1745745032583,-300.0,0.00015922,2]
[359151197,1745745032595,-300.0,0.00015922,2]
[359151198,1745745032606,-500.0,0.00015922,2]
[359151199,1745745032617,-500.0,0.00015922,2]
[359151200,1745745032627,-249.9901553,0.00015928,2]
[359151201,1745745032637,-188.94261041,0.00015928,2]
[359151202,1745745032647,-500.0,0.00015928,2]
[359151203,1745745032660,-18187.56604164,0.00015929,2]
[359151204,1745745032673,-32094.93480736,0.00015929,2]
[359151205,1745745032682,-108278.3160123,0.00015938,2]
[359151206,1745745032711,-500.0,0.00015922,2]
[359151207,1745745032721,-168706.62738492,0.00015938,2]
[359151267,1745745038772,-500.0,0.00015922,2]
[359151268,1745745038781,-611.73677481,0.00015922,2]
[359151269,1745745038792,-500.0,0.00015922,2]
[359151270,1745745038802,-500.0,0.00015922,2]
[359151271,1745745038811,-500.0,0.00015922,2]
[359151273,1745745038821,-500.0,0.00015922,2]
[359151275,1745745038831,-500.0,0.00015922,2]
[359151277,1745745038840,-500.0,0.00015922,2]
[359151279,1745745038849,-500.0,0.00015922,2]
[359151281,1745745038858,-500.0,0.00015922,2]
[359151283,1745745038867,-500.0,0.00015922,2]
[359151285,1745745038877,-500.0,0.00015922,2]
[359151287,1745745038887,-500.0,0.00015922,2]
[359151289,1745745038896,-500.0,0.00015922,2]
[359151290,1745745038905,-500.0,0.00015922,2]
[359151291,1745745038915,-500.0,0.00015922,2]
[359151292,1745745038925,-500.0,0.00015922,2]
[359151293,1745745038934,-500.0,0.00015922,2]
[359151294,1745745038944,-500.0,0.00015922,2]
[359151295,1745745038954,-500.0,0.00015922,2]
[359151296,1745745038963,-500.0,0.00015922,2]
[359151297,1745745038973,-500.0,0.00015922,2]
[359151298,1745745038983,-500.0,0.00015922,2]
[359151299,1745745038992,-500.0,0.00015922,2]
[359151300,1745745039002,-500.0,0.00015922,2]
[359151301,1745745039011,-20523.73959381,0.00015938,2]
[359151302,1745745039023,-8956.53795251,0.00015938,2]
[359151303,1745745039035,-2947.57868918,0.00015938,2]
[359151304,1745745039048,-60587.20036728,0.00015938,2]
[359151305,1745745039057,-505.9426864,0.00015973,2]
[359151306,1745745039067,-492.35878879,0.00015973,2]
[359151307,1745745039077,-500.0,0.00015973,2]
[359151308,1745745039086,-500.0,0.00015973,2]
[359151309,1745745039096,-500.0,0.00015973,2]
[359151310,1745745039106,-237.25972672,0.00015973,2]
[359151311,1745745039118,-265.8253141,0.00016164,2]
[359151312,1745745039127,-400.0,0.00016438,2]
[359151313,1745745039137,-500.0,0.00016438,2]
[359151314,1745745039147,-500.0,0.00016438,2]
[359151315,1745745039157,-391.45,0.00016438,2]
[359151316,1745745039166,-400.0,0.00016438,2]
[359151317,1745745039176,-500.0,0.00016438,2]
[359151318,1745745039186,-400.0,0.00016438,2]
[359151319,1745745039195,-400.0,0.00016438,2]
[359151320,1745745039205,-400.0,0.00016438,2]
[359151321,1745745039214,-400.0,0.00016438,2]
[359151322,1745745039224,-400.0,0.00016438,2]
[359151323,1745745039234,-400.0,0.00016438,2]
[359151324,1745745039243,-400.0,0.00016438,2]
[359151325,1745745039253,-400.0,0.00016438,2]
[359151326,1745745039262,-400.0,0.00016438,2]
[359151327,1745745039271,-400.0,0.00016438,2]
[359151328,1745745039281,-400.0,0.00016438,2]
[359151329,1745745039291,-400.0,0.00016438,2]
[359151330,1745745039301,-400.0,0.00016438,2]
[359151331,1745745039311,-500.0,0.00016438,2]
[359151332,1745745039320,-400.0,0.00016438,2]
[359151333,1745745039329,-400.0,0.00016438,2]
[359151334,1745745039339,-200.0,0.00016438,2]
[359151335,1745745039349,-500.0,0.00016438,2]
[359151336,1745745039358,-500.0,0.00016438,2]
[359151337,1745745039368,-500.0,0.00016438,2]
[359151338,1745745039378,-400.0,0.00016438,2]
[359151339,1745745039533,-500.0,0.00016438,2]
[359151340,1745745039548,-400.0,0.00016438,2]
[359151341,1745745039558,-400.0,0.00016438,2]
[359151342,1745745039568,-400.0,0.00016438,2]
[359151343,1745745039578,-500.0,0.00016438,2]
[359151344,1745745039589,-400.0,0.00016438,2]
[359151345,1745745039599,-366.78,0.00016438,2]
[359151346,1745745039608,-400.0,0.00016438,2]
[359151347,1745745039618,-400.0,0.00016438,2]
[359151348,1745745039629,-400.0,0.00016438,2]
[359151349,1745745039639,-400.0,0.00016438,2]
[359151350,1745745039648,-500.0,0.00016438,2]
[359151351,1745745039658,-500.0,0.00016438,2]
[359151352,1745745039667,-500.0,0.00016438,2]
[359151353,1745745039677,-400.0,0.00016438,2]
[359151354,1745745039687,-400.0,0.00016438,2]
[359151355,1745745039697,-400.0,0.00016438,2]
[359151356,1745745039706,-400.0,0.00016438,2]
[359151357,1745745039716,-400.0,0.00016438,2]
[359151358,1745745039725,-400.0,0.00016438,2]
[359151359,1745745039735,-400.0,0.00016438,2]
[359151360,1745745039744,-400.0,0.00016438,2]
[359151361,1745745039755,-400.0,0.00016438,2]
[359151362,1745745039764,-400.0,0.00016438,2]
[359151363,1745745039774,-400.0,0.00016438,2]
[359151364,1745745039783,-400.0,0.00016438,2]
[359151365,1745745039793,-400.0,0.00016438,2]
[359151366,1745745039802,-400.0,0.00016438,2]
[359151367,1745745039812,-400.0,0.00016438,2]
[359151368,1745745039821,-400.0,0.00016438,2]
[359151369,1745745039831,-351.47561163,0.00016438,2]
[359151370,1745745039840,-400.0,0.00016438,2]
[359151371,1745745039851,-500.0,0.00016438,2]
[359151372,1745745039861,-400.0,0.00016438,2]
[359151373,1745745039871,-400.0,0.00016438,2]
[359151374,1745745039881,-400.0,0.00016438,2]
[359151375,1745745039890,-500.0,0.00016438,2]
[359151376,1745745039900,-500.0,0.00016438,2]
[359151377,1745745039910,-500.0,0.00016438,2]
[359151378,1745745039920,-500.0,0.00016438,2]
[359151379,1745745039930,-400.0,0.00016438,2]
[359151380,1745745039941,-400.0,0.00016438,2]
[359151381,1745745039951,-400.0,0.00016438,2]
[359151382,1745745039961,-400.0,0.00016438,2]
[359151383,1745745039970,-400.0,0.00016438,2]
[359151384,1745745039980,-500.0,0.00016438,2]
[359151385,1745745039990,-500.0,0.00016438,2]
[359151386,1745745039999,-500.0,0.00016438,2]
[359151387,1745745040010,-400.0,0.00016438,2]
[359151388,1745745040019,-500.0,0.00016438,2]
[359151390,1745745040029,-400.0,0.00016438,2]
[359151391,1745745040039,-500.0,0.00016438,2]
[359151392,1745745040048,-500.0,0.00016438,2]
[359151393,1745745040059,-400.0,0.00016438,2]
[359151394,1745745040068,-500.0,0.00016438,2]
[359151395,1745745040080,-400.0,0.00016438,2]
[359151396,1745745040090,-400.0,0.00016438,2]
[359151397,1745745040101,-500.0,0.00016438,2]
[359151398,1745745040111,-400.0,0.00016438,2]
[359151399,1745745040121,-500.0,0.00016438,2]
[359151401,1745745040132,-500.0,0.00016438,2]
[359151402,1745745040141,-400.0,0.00016438,2]
[359151403,1745745040150,-400.0,0.00016438,2]
[359151404,1745745040160,-500.0,0.00016438,2]
[359151405,1745745040169,-500.0,0.00016438,2]
[359151406,1745745040178,-400.0,0.00016438,2]
[359151407,1745745040188,-400.0,0.00016438,2]
[359151408,1745745040198,-400.0,0.00016438,2]
[359151409,1745745040207,-400.0,0.00016438,2]
[359151410,1745745040217,-400.0,0.00016438,2]
[359151411,1745745040227,-400.0,0.00016438,2]
[359151412,1745745040236,-400.0,0.00016438,2]
[359151413,1745745040246,-400.0,0.00016438,2]
[359151414,1745745040255,-400.0,0.00016438,2]
[359151415,1745745040265,-400.0,0.00016438,2]
[359151416,1745745040275,-400.0,0.00016438,2]
[359151417,1745745040286,-500.0,0.00016438,2]
[359151418,1745745040296,-400.0,0.00016438,2]
[359151419,1745745040306,-400.0,0.00016438,2]
[359151420,1745745040317,-400.0,0.00016438,2]
[359151421,1745745040328,-400.0,0.00016438,2]
[359151422,1745745040339,-400.0,0.00016438,2]
[359151423,1745745040350,-400.0,0.00016438,2]
[359151424,1745745040360,-500.0,0.00016438,2]
[359151425,1745745040370,-500.0,0.00016473,2]
[359151426,1745745040380,-500.0,0.00016473,2]
[359151427,1745745040390,-502.69476561,0.00016473,2]
[359151428,1745745040399,-500.0,0.00016473,2]
[359151429,1745745040410,-500.0,0.00016473,2]
[359151430,1745745040420,-500.0,0.00016473,2]
[359151431,1745745040430,-400.0,0.00016712,2]
[359151432,1745745040439,-400.0,0.00016712,2]
[359151433,1745745040449,-400.0,0.00016712,2]
[359151434,1745745040460,-400.0,0.00016712,2]
[359151435,1745745040469,-400.0,0.00016712,2]
[359151436,1745745040479,-400.0,0.00016712,2]
[359151437,1745745040488,-400.0,0.00016712,2]
[359151438,1745745040497,-400.0,0.00016712,2]
[359151439,1745745040507,-400.0,0.00016712,2]
[359151440,1745745040516,-379.47,0.00016712,2]
[359151441,1745745040525,-464.68,0.00016712,2]
[359151442,1745745040534,-400.0,0.00016712,2]
[359151443,1745745040543,-400.0,0.00016712,2]
[359151444,1745745040553,-400.0,0.00016712,2]
[359151445,1745745040562,-400.0,0.00016712,2]
[359151446,1745745040571,-400.0,0.00016712,2]
[359151447,1745745040582,-400.0,0.00016712,2]
[359151448,1745745040594,-400.0,0.00016712,2]
[359151449,1745745040603,-400.0,0.00016712,2]
[359151450,1745745040612,-400.0,0.00016712,2]
[359151451,1745745040622,-400.0,0.00016712,2]
[359151452,1745745040632,-400.0,0.00016712,2]
[359151453,1745745040641,-400.0,0.00016712,2]
[359151454,1745745040651,-400.0,0.00016712,2]
[359151455,1745745040661,-171.93,0.00016712,2]
[359151456,1745745040671,-400.0,0.00016712,2]
[359151457,1745745040680,-400.0,0.00016712,2]
[359151458,1745745040689,-400.0,0.00016712,2]
[359151459,1745745040698,-400.0,0.00016712,2]
[359151460,1745745040707,-400.0,0.00016712,2]
[359151461,1745745040717,-400.0,0.00016712,2]
[359151462,1745745040726,-400.0,0.00016712,2]
[359151463,1745745040736,-400.0,0.00016712,2]
[359151464,1745745040746,-400.0,0.00016712,2]
[359151465,1745745040755,-400.0,0.00016712,2]
[359151466,1745745040764,-400.0,0.00016712,2]
[359151467,1745745040774,-400.0,0.00016712,2]
[359151468,1745745040783,-400.0,0.00016712,2]
[359151469,1745745040793,-400.0,0.00016712,2]
[359151470,1745745040802,-400.0,0.00016712,2]
[359151471,1745745040812,-400.0,0.00016712,2]
[359151472,1745745040822,-400.0,0.00016712,2]
[359151473,1745745040831,-400.0,0.00016712,2]
[359151474,1745745040841,-400.0,0.00016712,2]
[359151475,1745745040851,-400.0,0.00016712,2]
[359151476,1745745040860,-400.0,0.00016712,2]
[359151477,1745745040870,-400.0,0.00016712,2]
[359151478,1745745040880,-400.0,0.00016712,2]
[359151479,1745745040889,-400.0,0.00016712,2]
[359151480,1745745040899,-400.0,0.00016712,2]
[359151481,1745745040908,-400.0,0.00016712,2]
[359151482,1745745040918,-400.0,0.00016712,2]
[359151483,1745745040928,-400.0,0.00016712,2]
[359151484,1745745040938,-400.0,0.00016712,2]
[359151485,1745745040947,-400.0,0.00016712,2]
[359151486,1745745040957,-400.0,0.00016712,2]
[359151487,1745745040967,-400.0,0.00016712,2]
[359151488,1745745040977,-400.0,0.00016712,2]
[359151489,1745745040986,-400.0,0.00016712,2]
[359151490,1745745040995,-400.0,0.00016712,2]
[359151491,1745745041005,-400.0,0.00016712,2]
[359151492,1745745041015,-400.0,0.00016712,2]
[359151493,1745745041024,-400.0,0.00016712,2]
[359151494,1745745041034,-400.0,0.00016712,2]
[359151495,1745745041044,-400.0,0.00016712,2]
[359151496,1745745041054,-400.0,0.00016712,2]
[359151497,1745745041063,-400.0,0.00016712,2]
[359151498,1745745041073,-500.0,0.00016712,2]
[359151499,1745745041082,-400.0,0.00016712,2]
[359151500,1745745041092,-400.0,0.00016712,2]
[359151501,1745745041101,-400.0,0.00016712,2]
[359151502,1745745041111,-400.0,0.00016712,2]
[359151503,1745745041121,-400.0,0.00016712,2]
[359151504,1745745041130,-400.0,0.00016712,2]
[359151505,1745745041140,-205.0450561,0.000169,2]
[359151506,1745745041149,-400.0,0.00016986,2]
[359151507,1745745041158,-300.0,0.00016986,2]
[359151508,1745745041167,-504.21,0.00016986,2]
[359151509,1745745041177,-219.14024534,0.00016986,2]
[359151510,1745745041186,-400.0,0.00016986,2]
[359151511,1745745041196,-400.0,0.00016986,2]
[359151512,1745745041205,-400.0,0.00016986,2]
[359151513,1745745041215,-400.0,0.00016986,2]
[359151514,1745745041224,-400.0,0.00016986,2]
[359151515,1745745041234,-519.41,0.00016986,2]
[359151516,1745745041243,-400.0,0.00016986,2]
[359151517,1745745041252,-400.0,0.00016986,2]
[359151518,1745745041262,-400.0,0.00016986,2]
[359151519,1745745041271,-400.0,0.00016986,2]
[359151520,1745745041280,-426.21,0.00016986,2]
[359151521,1745745041289,-400.0,0.00016986,2]
[359151522,1745745041299,-279.39,0.00016986,2]
[359151523,1745745041309,-163.47,0.00016986,2]
[359151524,1745745041319,-400.0,0.00016986,2]
[359151525,1745745041328,-400.0,0.00016986,2]
[359151526,1745745041337,-400.0,0.00016986,2]
[359151527,1745745041346,-283.00891331,0.00016986,2]
[359151528,1745745041356,-400.0,0.00016986,2]
[359151529,1745745041365,-400.0,0.00016986,2]
[359151530,1745745041374,-400.0,0.00016986,2]
[359151531,1745745041383,-420.28,0.00016986,2]
[359151532,1745745041393,-400.0,0.00016986,2]
[359151533,1745745041403,-400.0,0.00016986,2]
[359151534,1745745041413,-400.0,0.00016986,2]
[359151535,1745745041423,-200.0,0.00016986,2]
[359151536,1745745041433,-400.0,0.00016986,2]
[359151537,1745745041442,-471.42,0.00016986,2]
[359151538,1745745041452,-400.0,0.00016986,2]
[359151539,1745745041461,-406.51,0.00016986,2]
[359151540,1745745041471,-530.62,0.00016986,2]
[359151541,1745745041481,-400.0,0.00016986,2]
[359151542,1745745041490,-234.6,0.00016986,2]
[359151543,1745745041500,-400.0,0.00016986,2]
[359151544,1745745041510,-400.0,0.00016986,2]
[359151545,1745745041521,-400.0,0.00016986,2]
[359151546,1745745041530,-400.0,0.00016986,2]
[359151547,1745745041540,-400.0,0.00016986,2]
[359151548,1745745041549,-400.0,0.00016986,2]
[359151549,1745745041559,-400.0,0.00016986,2]
[359151550,1745745041568,-160.0,0.00017201,2]
[359151551,1745745041578,-160.0,0.00017201,2]
[359151552,1745745041591,-421.1409203,0.00017201,2]
[359151553,1745745041601,-840.47993636,0.00017201,2]
[359151554,1745745041610,-160.0,0.00017201,2]
[359151555,1745745041620,-12584.55399671,0.00017201,2]
[359151556,1745745041630,-160.0,0.00017201,2]
[359151557,1745745041640,-400.0,0.0001726,2]
[359151558,1745745041650,-400.0,0.0001726,2]
[359151559,1745745041659,-258.0,0.0001726,2]
[359151560,1745745041670,-400.0,0.0001726,2]
[359151561,1745745041679,-400.0,0.0001726,2]
[359151562,1745745041688,-261.28,0.0001726,2]
[359151563,1745745041698,-313.88,0.0001726,2]
[359151564,1745745041707,-400.0,0.0001726,2]
[359151565,1745745041717,-317.84,0.0001726,2]
[359151566,1745745041726,-400.0,0.0001726,2]
[359151567,1745745041736,-297.05,0.0001726,2]
[359151568,1745745041745,-400.0,0.0001726,2]
[359151569,1745745041756,-526.1,0.0001726,2]
[359151570,1745745041765,-400.0,0.0001726,2]
[359151571,1745745041775,-400.0,0.0001726,2]
[359151572,1745745041784,-400.0,0.0001726,2]
[359151573,1745745041794,-400.0,0.0001726,2]
[359151574,1745745041804,-319.64297616,0.0001726,2]
[359151575,1745745041813,-400.0,0.0001726,2]
[359151576,1745745041824,-449.76,0.0001726,2]
[359151577,1745745041834,-400.0,0.0001726,2]
[359151578,1745745041843,-400.0,0.0001726,2]
[359151579,1745745041853,-400.0,0.00017534,2]
[359151580,1745745041863,-400.0,0.00017534,2]
[359151581,1745745041873,-343.82,0.00017534,2]
[359151582,1745745041883,-400.0,0.00017534,2]
[359151583,1745745041892,-400.0,0.00017534,2]
[359151584,1745745041902,-328.14,0.00017534,2]
[359151585,1745745041912,-400.0,0.00017534,2]
[359151586,1745745041921,-168.3,0.00017534,2]
[359151587,1745745041931,-400.0,0.00017534,2]
[359151588,1745745041941,-188.95,0.00017534,2]
[359151589,1745745041951,-400.0,0.00017534,2]
[359151590,1745745041961,-400.0,0.00017534,2]
[359151591,1745745041971,-400.0,0.00017534,2]
[359151592,1745745041980,-400.0,0.00017534,2]
[359151593,1745745041989,-400.0,0.00017808,2]
[359151594,1745745041999,-359.85,0.00017808,2]
[359151595,1745745042009,-400.0,0.00017808,2]
[359151596,1745745042019,-400.0,0.00017808,2]
[359151597,1745745042028,-274.91,0.00017808,2]
[359151598,1745745042038,-400.0,0.00017808,2]
[359151599,1745745042048,-546.1,0.00017808,2]
[359151600,1745745042059,-400.0,0.00017808,2]
[359151601,1745745042071,-400.0,0.00017808,2]
[359151602,1745745042081,-400.0,0.00017808,2]
[359151603,1745745042091,-205.0450559,0.000179,2]
[359151604,1745745042102,-400.0,0.00018082,2]
[359151605,1745745042114,-400.0,0.00018082,2]
[359151606,1745745042125,-400.0,0.00018082,2]
[359151607,1745745042135,-400.0,0.00018082,2]
[359151608,1745745042145,-400.0,0.00018082,2]
[359151609,1745745042155,-400.0,0.00018082,2]
[359151610,1745745042164,-400.0,0.00018082,2]
[359151611,1745745042175,-153.31517994,0.00018316,2]
[359151612,1745745042184,-400.0,0.00018356,2]
[359151613,1745745042193,-289.44,0.00018356,2]
[359151614,1745745042203,-291.58,0.00018356,2]
[359151615,1745745042212,-373.28,0.00018356,2]
[359151616,1745745042221,-288.8,0.00018356,2]
[359151617,1745745042230,-400.0,0.00018356,2]
[359151618,1745745042239,-400.0,0.00018356,2]
[359151619,1745745042249,-155.65734527,0.00018387,2]
[359151620,1745745042258,-400.0,0.0001863,2]
[359151621,1745745042266,-173.91,0.0001863,2]
[359151622,1745745042276,-400.0,0.0001863,2]
[359151623,1745745042286,-205.0450559,0.000189,2]
[359151624,1745745042295,-281.48850006,0.00018904,2]
[359151625,1745745042304,-400.0,0.00018904,2]
[359151626,1745745042313,-2247.0,0.00019083,2]
[359151627,1745745042323,-151.0,0.00019178,2]
[359151628,1745745042332,-400.0,0.00019178,2]
[359151629,1745745042342,-300.0,0.00019178,2]
[359151630,1745745042352,-905.40146358,0.0001922,2]
[359151631,1745745042361,-151.0,0.00019315,2]
[359151632,1745745042371,-151.0,0.00019452,2]
[359151633,1745745042381,-176.47000001,0.00019452,2]
[359151634,1745745042390,-278.51122496,0.00019589,2]
[359151635,1745745042399,-207.4,0.00019684,2]
[359151636,1745745042409,-205.0450559,0.000199,2]
[359151637,1745745042419,-900.0,0.00019963,2]
[359151638,1745745042429,-600.0,0.00020822,2]
[359151639,1745745042438,-155.65734527,0.000209,2]
[359151640,1745745042447,-205.0450559,0.000209,3]
[359151641,1745745042457,-2103.99,0.00021,2]
[359151642,1745745042466,-150.0,0.00021,2]
[359151643,1745745042476,-900.0,0.00021059,2]
[359151644,1745745042486,-1000.0,0.00021452,2]
[359151645,1745745042495,-1000.0,0.00021452,2]
[359151646,1745745042505,-1000.0,0.00021452,2]
[359151647,1745745042515,-1092.30721376,0.00021793,2]
[359151648,1745745042524,-205.0450559,0.000219,3]
[359151649,1745745042534,-1045.43850107,0.00021952,2]
[359151650,1745745042543,-761.64996053,0.00021952,2]
[359151651,1745745042552,-500.0,0.00021952,2]
[359151652,1745745042562,-1000.0,0.00021952,2]
[359151653,1745745042571,-1000.0,0.00021952,2]
[359151654,1745745042581,-2247.0,0.00022083,2]
[359151655,1745745042594,-900.0,0.00022155,2]
[359151656,1745745042603,-2000.0,0.00022185,4]
[359151657,1745745042613,-900.0,0.00022466,2]
[359151658,1745745042634,-905.40146358,0.00022603,2]
[359151659,1745745042643,-499.0,0.00022685,15]
[359151660,1745745042653,-153.31517994,0.00022816,52]
[359151661,1745745042664,-205.0450559,0.000229,4]
[359151662,1745745042674,-2000.0,0.00022967,4]
[359151663,1745745042684,-900.0,0.00023251,2]
[359151664,1745745042694,-500.0,0.0002343,2]
[359151665,1745745042704,-500.0,0.0002343,2]
[359151666,1745745042713,-500.0,0.0002343,2]
[359151667,1745745042723,-537.11863441,0.0002343,2]
[359151668,1745745042733,-160.0,0.00023448,5]
[359151669,1745745042744,-339.6960935,0.00023695,2]
[359151670,1745745042753,-2000.0,0.00023748,4]
[359151671,1745745042763,-160.0,0.000239,14]
[359151672,1745745042773,-205.0450559,0.000239,5]
[359151673,1745745042782,-150.0,0.00023973,2]
[359151674,1745745042792,-500.0,0.00023973,2]
[359151675,1745745042802,-1675.98548772,0.00024,2]
[359151676,1745745042812,-97733.01848791,0.00024,2]
[359151677,1745745042822,-421.1409203,0.00024,10]
[359151678,1745745042832,-1000.0,0.00024,24]
[359151679,1745745042841,-151.0,0.00024,7]
[359151680,1745745042852,-500.58,0.000241,120]
[359151681,1745745042862,-1274.06,0.00024109,2]
[359151682,1745745042872,-1274.06,0.00024109,2]
[359151683,1745745042882,-1274.06,0.00024109,2]
[359151684,1745745042892,-1274.06,0.00024109,2]
[359151685,1745745042902,-1274.06,0.00024109,2]
[359151686,1745745042912,-1274.06,0.00024109,2]
[359151687,1745745042921,-1274.06,0.00024109,2]
[359151688,1745745042931,-1274.06,0.00024109,2]
[359151689,1745745042940,-1274.06,0.00024109,2]
[359151690,1745745042949,-1274.06,0.00024109,2]
[359151691,1745745042959,-1274.06,0.00024109,2]
[359151692,1745745042968,-1274.06,0.00024109,2]
[359151693,1745745042978,-1274.06,0.00024109,2]
[359151694,1745745042988,-1274.06,0.00024109,2]
[359151695,1745745042995,-1274.06,0.00024109,2]
[359151696,1745745043003,-1274.06,0.00024109,2]
[359151697,1745745043013,-1274.06,0.00024109,2]
[359151698,1745745043023,-1274.06,0.00024109,2]
[359151699,1745745043033,-1274.06,0.00024109,2]
[359151701,1745745043043,-1274.06,0.00024109,2]
[359151702,1745745043052,-1274.06,0.00024109,2]
[359151712,1745745043244,-1274.06,0.00024109,2]
[359151714,1745745043255,-1274.06,0.00024109,2]
[359151715,1745745043265,-355.87075174,0.00024109,2]
[359151716,1745745043410,-457.15260461,0.00016986,2]
[359151718,1745745043420,-918.28655781,0.00024109,2]
[359151720,1745745043429,-1200.0,0.0002411,2]
[359151722,1745745043439,-200.0,0.00024189,120]
[359151724,1745745043448,-153.31517994,0.00024316,60]
[359151726,1745745043457,-900.0,0.00024347,2]
[359151728,1745745043467,-36719.26570204,0.0002445,2]
[359151729,1745745043476,-200.0,0.00024454,120]
[359151731,1745745043485,-250.0,0.00024521,2]
[359151732,1745745043494,-200.0,0.00024526,120]
[359151733,1745745043505,-2000.0,0.0002453,4]
[359151734,1745745043515,-200.0,0.00024534,120]